[Event "1st Gujarat GM Open 2018"]
[Site "Ahmedabad"]
[Date "2018.10.07"]
[Round "4"]
[White "Thipsay, Bagyashree Sathe"]
[Black "Pranav Vijay"]
[Result "0-1"]
[ECO "C55"]
[WhiteElo "2021"]
[BlackElo "2265"]
[Annotator "NA"]
[PlyCount "144"]
[EventDate "2018.10.05"]
[EventType "swiss"]
[EventCountry "IND"]
[SourceTitle "playchess.com"]
[Source "ChessBase"]
[SourceQuality "1"]
[TimeControl "5400+30"]

1. e4 {[%emt 0:00:00]} Nc6 {[%emt 0:00:21]} 2. Nf3 {[%emt 0:00:00]} e5 {[%emt 0:00:40]} 3. Bc4 {[%emt 0:00:10]} Nf6 {[%emt 0:00:13]} 4. d3 {[%emt 0:00:04]} Be7 {[%emt 0:00:43]} 5. O-O {[%emt 0:00:16]} O-O {[%emt 0:00:23]} 6. Re1 {[%emt 0:00:06]} d6 {[%emt 0:00:23]} 7. a4 {[%emt 0:00:07]} Na5 {[%emt 0:00:36]} 8. Ba2 {[%emt 0:00:08]} c5 {[%emt 0:00:31]} 9. c3 {[%emt 0:00:52]} Nc6 {[%emt 0:01:24]} 10. Na3 {[%emt 0:00:41]} Be6 {[%emt 0:01:22]} 11. Bxe6 {[%emt 0:02:13]} fxe6 {[%emt 0:00:24]} 12. Nc2 {[%emt 0:01:59]} h6 {[%emt 0:06:40]} 13. Bd2 {[%emt 0:08:35]} Qc7 {[%emt 0:03:16]} 14. b4 {[%emt 0:03:03]} Rf7 {[%emt 0:00:52]} 15. b5 {[%emt 0:09:44]} Na5 {[%emt 0:01:31]} 16. Rb1 {[%emt 0:15:10]} c4 {[%emt 0:02:32]} 17. d4 {[%emt 0:17:19]} Raf8 {[%emt 0:01:34]} 18. Bc1 {[%emt 0:11:13]} Nh7 {[%emt 0:03:04]} 19. Be3 {[%emt 0:01:28]} Nf6 {[%emt 0:04:40]} 20. Nd2 {[%emt 0:01:32]} Nb3 {[%emt 0:02:11]} 21. f3 {[%emt 0:01:14]} Na5 {[%emt 0:03:45]} 22. Kh1 {[%emt 0:05:16]} b6 {[%emt 0:02:03]} 23. Qe2 {[%emt 0:03:27]} Nh5 {[%emt 0:01:02]} 24. Nb4 {[%emt 0:01:09]} Bh4 {[%emt 0:02:31]} 25. Rec1 {[%emt 0:01:37]} Bg5 {[%emt 0:03:25]} 26. d5 {[%emt 0:01:04]} exd5 {[%emt 0:08:24]} 27. Nxd5 {[%emt 0:00:08]} Qc8 {[%emt 0:00:21]} 28. Rb4 {[%emt 0:01:20]} Bxe3 {[%emt 0:02:41]} 29. Qxe3 {[%emt 0:00:34]} g5 {[%emt 0:09:38]} 30. Kg1 Nf4 {[%emt 0:03:03]} 31. Nxf4 {[%emt 0:02:55]} gxf4 {[%emt 0:00:11]} 32. Qf2 {[%emt 0:00:46]} Kh7 {[%emt 0:00:30]} 33. Kh1 {[%emt 0:01:18]} Rg8 {[%emt 0:03:30]} 34. Qe2 {[%emt 0:00:42]} Rc7 {[%emt 0:00:46]} 35. Rd1 {[%emt 0:00:17]} Qe6 {[%emt 0:00:18]} 36. Rb2 {[%emt 0:03:56]} Rcg7 {[%emt 0:01:03]} 37. Rg1 {[%emt 0:00:02]} Rg5 {[%emt 0:01:47]} 38. Rb4 {[%emt 0:02:06]} Rc8 {[%emt 0:01:02]} 39. Rd1 {[%emt 0:00:45]} Qf7 {[%emt 0:01:48]} 40. Rg1 {[%emt 0:02:28]} Qh5 {[%emt 0:03:23]} 41. Rf1 {[%emt 0:01:20]} Qf7 {[%emt 0:01:51]} 42. Rf2 {[%emt 0:00:37]} Rg6 {[%emt 0:00:37]} 43. Qf1 {[%emt 0:00:25]} h5 {[%emt 0:00:52]} 44. Qe2 {[%emt 0:01:04]} Qe6 {[%emt 0:01:38]} 45. Qf1 {[%emt 0:00:49]} Rc7 {[%emt 0:00:51]} 46. Qe2 {[%emt 0:00:22]} Kg8 {[%emt 0:00:37]} 47. Rb1 {[%emt 0:00:43]} Kf8 {[%emt 0:00:36]} 48. Rg1 {[%emt 0:00:42]} Ke8 {[%emt 0:00:44]} 49. Rff1 {[%emt 0:00:27]} Kd8 {[%emt 0:00:37]} 50. g3 {[%emt 0:00:20]} fxg3 {[%emt 0:00:59]} 51. Rxg3 {[%emt 0:00:04]} Rxg3 {[%emt 0:01:08]} 52. hxg3 {[%emt 0:00:01]} Nb3 {[%emt 0:00:53]} 53. Kg2 {[%emt 0:01:05]} Rg7 {[%emt 0:03:51]} 54. Rh1 {[%emt 0:00:58]} Qg8 {[%emt 0:01:33]} 55. Nf1 {[%emt 0:00:32]} Nc1 {[%emt 0:00:48]} 56. Qd2 {[%emt 0:00:28]} Nd3 {[%emt 0:00:09]} 57. Rh4 {[%emt 0:01:08]} Rg6 {[%emt 0:00:56]} 58. Kh2 {[%emt 0:00:27]} Rf6 {[%emt 0:03:26]} 59. Qe3 {[%emt 0:00:05]} Qf7 {[%emt 0:00:50]} 60. Nd2 {[%emt 0:00:02]} Kc7 {[%emt 0:01:04]} 61. Kg2 {[%emt 0:01:07]} Rg6 {[%emt 0:01:15]} 62. Kh2 {[%emt 0:00:14]} Qg7 {[%emt 0:01:13]} 63. Nf1 {[%emt 0:00:19]} Rg5 {[%emt 0:01:06]} 64. Qd2 {[%emt 0:00:20]} Qg6 {[%emt 0:02:02]} 65. Qe3 {[%emt 0:01:13]} Qg8 {[%emt 0:02:08]} 66. Qd2 {[%emt 0:00:13]} Qg6 {[%emt 0:01:35]} 67. Qe3 {[%emt 0:00:07]} Nc5 {[%emt 0:02:34]} 68. Qe2 {[%emt 0:00:06]} Qg8 {[%emt 0:00:59]} 69. Ne3 {[%emt 0:01:18]} Rxg3 {[%emt 0:00:36]} 70. Rxh5 {[%emt 0:00:09]} Rg7 {[%emt 0:01:08]} 71. Nxc4 {[%emt 0:02:04]} Qf7 {[%emt 0:00:31]} 72. Rh3 {[%emt 0:00:01]} Qf4+ {[%emt 0:00:08]} 0-1

[Event "1st Gujarat GM Open 2018"]
[Site "Ahmedabad"]
[Date "2018.10.07"]
[Round "4"]
[White "Shyam Prasad Reddy K"]
[Black "Abu Sufian, Shakil"]
[Result "0-1"]
[ECO "B13"]
[WhiteElo "2014"]
[BlackElo "2247"]
[Annotator "NA"]
[PlyCount "72"]
[EventDate "2018.10.05"]
[EventType "swiss"]
[EventCountry "IND"]
[SourceTitle "playchess.com"]
[Source "ChessBase"]
[SourceQuality "1"]
[TimeControl "5400+30"]

1. e4 {[%emt 0:00:00]} c6 {[%emt 0:00:00]} 2. d4 {[%emt 0:00:00]} d5 {[%emt 0:00:00]} 3. exd5 {[%emt 0:00:00]} cxd5 {[%emt 0:00:00]} 4. c4 {[%emt 0:00:00]} Nf6 {[%emt 0:00:00]} 5. Nc3 {[%emt 0:00:03]} Nc6 {[%emt 0:00:32]} 6. Bg5 {[%emt 0:01:50]} e6 {[%emt 0:06:31]} 7. Nf3 {[%emt 0:00:44]} Bb4 {[%emt 0:08:27]} 8. Be2 {[%emt 0:11:33]} dxc4 {[%emt 0:02:54]} 9. O-O {[%emt 0:02:53]} h6 {[%emt 0:08:01]} 10. Bxf6 {[%emt 0:02:06]} Qxf6 {[%emt 0:00:31]} 11. d5 {[%emt 0:02:34]} exd5 {[%emt 0:07:34]} 12. Nxd5 {[%emt 0:00:07]} Qd6 {[%emt 0:00:19]} 13. Nxb4 {[%emt 0:04:21]} Qxb4 {[%emt 0:00:16]} 14. Nd4 {[%emt 0:03:50]} O-O {[%emt 0:01:33]} 15. Nxc6 {[%emt 0:16:21]} bxc6 {[%emt 0:00:53]} 16. Qc2 {[%emt 0:00:52]} Be6 {[%emt 0:00:16]} 17. Rfc1 {[%emt 0:01:00]} Rfd8 {[%emt 0:01:54]} 18. a3 {[%emt 0:14:08]} Qb3 {[%emt 0:02:33]} 19. h3 {[%emt 0:13:18]} Rab8 {[%emt 0:02:04]} 20. Qe4 {[%emt 0:17:30]} Qxb2 {[%emt 0:09:10]} 21. Rab1 {[%emt 0:00:46]} Qxa3 {[%emt 0:00:43]} 22. Ra1 {[%emt 0:02:44]} Qc5 {[%emt 0:01:10]} 23. Bxc4 {[%emt 0:02:23]} Rd4 {[%emt 0:06:53]} 24. Qxe6 {[%emt 0:00:26]} Rd1+ {[%emt 0:00:06]} 25. Rxd1 {[%emt 0:00:56]} fxe6 {[%emt 0:00:30]} 26. Bxe6+ {[%emt 0:00:30]} Kh8 {[%emt 0:00:23]} 27. Rac1 {[%emt 0:00:19]} Qb6 {[%emt 0:05:54]} 28. Bg4 {[%emt 0:01:53]} Rf8 {[%emt 0:02:58]} 29. Bf3 {[%emt 0:00:04]} c5 {[%emt 0:00:28]} 30. Rd7 {[%emt 0:01:02]} a6 {[%emt 0:03:47]} 31. Rcd1 {[%emt 0:00:31]} c4 {[%emt 0:00:55]} 32. R1d6 {[%emt 0:00:29]} Qb1+ {[%emt 0:00:38]} 33. Kh2 {[%emt 0:00:21]} Qe1 {[%emt 0:05:42]} 34. Rd2 {[%emt 0:00:50]} Qe5+ {[%emt 0:01:34]} 35. Kg1 {[%emt 0:00:28]} c3 {[%emt 0:00:59]} 36. Re2 {[%emt 0:00:32]} Qb5 {[%emt 0:01:31]} 0-1

[Event "1st Gujarat GM Open 2018"]
[Site "Ahmedabad"]
[Date "2018.10.07"]
[Round "4"]
[White "Mrudul Dehankar"]
[Black "Kumar, Gaurav"]
[Result "0-1"]
[ECO "A06"]
[WhiteElo "1996"]
[BlackElo "2236"]
[Annotator "NA"]
[PlyCount "114"]
[EventDate "2018.10.05"]
[EventType "swiss"]
[EventCountry "IND"]
[SourceTitle "playchess.com"]
[Source "ChessBase"]
[SourceQuality "1"]
[TimeControl "5400+30"]

1. Nf3 {[%emt 0:00:11]} d5 {[%emt 0:00:00]} 2. b3 {[%emt 0:00:32]} Nf6 {[%emt 0:00:57]} 3. Bb2 {[%emt 0:00:00]} Bg4 {[%emt 0:00:24]} 4. e3 {[%emt 0:00:26]} Nbd7 {[%emt 0:00:30]} 5. Be2 {[%emt 0:02:39]} e6 {[%emt 0:01:24]} 6. c4 {[%emt 0:00:35]} c6 {[%emt 0:01:18]} 7. O-O {[%emt 0:02:54]} Bd6 {[%emt 0:02:32]} 8. d3 {[%emt 0:02:52]} O-O {[%emt 0:03:47]} 9. Nbd2 {[%emt 0:00:56]} e5 {[%emt 0:01:28]} 10. Re1 {[%emt 0:07:12]} Re8 {[%emt 0:00:53]} 11. cxd5 {[%emt 0:04:48]} Nxd5 {[%emt 0:04:12]} 12. a3 {[%emt 0:02:25]} a5 {[%emt 0:01:25]} 13. Qc2 {[%emt 0:12:15]} Bh5 {[%emt 0:15:28]} 14. g3 {[%emt 0:12:34]} Bg4 {[%emt 0:11:17]} 15. Nc4 {[%emt 0:05:30]} Bc7 {[%emt 0:03:00]} 16. e4 {[%emt 0:01:03]} N5b6 {[%emt 0:02:55]} 17. Ne3 {[%emt 0:00:23]} Bh3 {[%emt 0:00:35]} 18. d4 {[%emt 0:04:05]} Qf6 {[%emt 0:11:16]} 19. dxe5 {[%emt 0:16:59]} Nxe5 {[%emt 0:03:18]} 20. Nd4 {[%emt 0:00:53]} Qg6 {[%emt 0:01:44]} 21. Ndf5 {[%emt 0:01:51]} f6 {[%emt 0:02:43]} 22. Nh4 {[%emt 0:02:55]} Qf7 {[%emt 0:00:59]} 23. f4 {[%emt 0:00:17]} Ned7 {[%emt 0:01:29]} 24. Nhf5 {[%emt 0:01:27]} Nf8 {[%emt 0:01:34]} 25. Bf3 {[%emt 0:05:23]} a4 {[%emt 0:06:15]} 26. b4 {[%emt 0:01:03]} Qb3 {[%emt 0:00:34]} 27. Qf2 {[%emt 0:02:41]} Nc4 {[%emt 0:01:04]} 28. Bd4 {[%emt 0:01:57]} Nxa3 {[%emt 0:07:15]} 29. Rec1 {[%emt 0:06:11]} Ne6 {[%emt 0:00:45]} 30. Bc3 {[%emt 0:01:00]} Bxf5 {[%emt 0:09:11]} 31. Bd1 {[%emt 0:00:28]} Bxe4 {[%emt 0:01:28]} 32. Bxb3 {[%emt 0:00:03]} axb3 {[%emt 0:00:11]} 33. Qb2 {[%emt 0:00:51]} Bb6 {[%emt 0:00:06]} 34. Rxa3 {[%emt 0:01:04]} Bxe3+ {[%emt 0:00:43]} 35. Kf1 {[%emt 0:00:28]} Bd3+ {[%emt 0:01:55]} 36. Kg2 {[%emt 0:00:18]} Be4+ {[%emt 0:01:17]} 37. Kf1 {[%emt 0:00:13]} Bd3+ {[%emt 0:01:15]} 38. Kg2 {[%emt 0:00:12]} Rxa3 {[%emt 0:00:21]} 39. Qxa3 {[%emt 0:00:10]} Bxc1 {[%emt 0:00:09]} 40. Qxc1 {[%emt 0:00:40]} Nc7 {[%emt 0:00:05]} 41. Qd1 {[%emt 0:00:45]} Be4+ {[%emt 0:02:12]} 42. Kf2 {[%emt 0:00:31]} Bd5 {[%emt 0:00:19]} 43. Qd3 {[%emt 0:01:00]} Nb5 {[%emt 0:00:18]} 44. Bb2 {[%emt 0:00:25]} Nd6 {[%emt 0:00:40]} 45. Qd4 {[%emt 0:00:46]} Nc4 {[%emt 0:00:35]} 46. Bc3 {[%emt 0:00:30]} Na3 {[%emt 0:00:41]} 47. Qb6 {[%emt 0:00:28]} Nc4 {[%emt 0:00:30]} 48. Qxb7 {[%emt 0:00:34]} b2 {[%emt 0:00:29]} 49. Qd7 {[%emt 0:00:24]} Re6 {[%emt 0:00:23]} 50. Bxb2 {[%emt 0:00:34]} Nxb2 {[%emt 0:00:06]} 51. g4 {[%emt 0:00:19]} Nd3+ {[%emt 0:00:41]} 52. Kg3 {[%emt 0:00:03]} Re3+ {[%emt 0:00:25]} 53. Kh4 {[%emt 0:00:14]} Nxf4 {[%emt 0:00:11]} 54. Qd8+ {[%emt 0:00:31]} Kf7 {[%emt 0:00:10]} 55. g5 {[%emt 0:00:50]} Ng2+ {[%emt 0:00:26]} 56. Kg4 {[%emt 0:00:05]} Be6+ {[%emt 0:00:10]} 57. Kh5 {[%emt 0:00:05]} Rh3# {[%emt 0:00:06]} 0-1

[Event "1st Gujarat GM Open 2018"]
[Site "Ahmedabad"]
[Date "2018.10.07"]
[Round "4"]
[White "Anusha N L V"]
[Black "Moksh Amit Doshi"]
[Result "1/2-1/2"]
[ECO "B08"]
[WhiteElo "1985"]
[BlackElo "2224"]
[Annotator "NA"]
[PlyCount "73"]
[EventDate "2018.10.05"]
[EventType "swiss"]
[EventCountry "IND"]
[SourceTitle "playchess.com"]
[Source "ChessBase"]
[SourceQuality "1"]
[TimeControl "5400+30"]

1. d4 {[%emt 0:00:00]} g6 {[%emt 0:00:27]} 2. Nf3 {[%emt 0:00:06]} Bg7 {[%emt 0:00:06]} 3. e4 {[%emt 0:01:02]} d6 {[%emt 0:00:09]} 4. Nc3 {[%emt 0:00:29]} Nf6 {[%emt 0:00:40]} 5. Be2 {[%emt 0:00:33]} O-O {[%emt 0:00:08]} 6. O-O {[%emt 0:00:04]} c6 {[%emt 0:00:51]} 7. a4 {[%emt 0:00:23]} Qc7 {[%emt 0:00:06]} 8. Bf4 {[%emt 0:04:45]} Nbd7 {[%emt 0:00:28]} 9. e5 {[%emt 0:03:42]} Nh5 {[%emt 0:03:55]} 10. Bg5 {[%emt 0:01:20]} dxe5 {[%emt 0:01:41]} 11. Bxe7 {[%emt 0:01:41]} Re8 {[%emt 0:00:12]} 12. d5 {[%emt 0:00:29]} Nf4 {[%emt 0:10:55]} 13. d6 {[%emt 0:02:38]} Nxe2+ {[%emt 0:00:32]} 14. Qxe2 {[%emt 0:00:11]} Qb6 {[%emt 0:00:48]} 15. Ng5 {[%emt 0:07:22]} Nf8 {[%emt 0:09:57]} 16. Rfd1 {[%emt 0:12:07]} h6 {[%emt 0:04:34]} 17. Nge4 {[%emt 0:03:08]} Nd7 {[%emt 0:01:13]} 18. h4 {[%emt 0:12:07]} Qa6 {[%emt 0:01:56]} 19. Qd2 {[%emt 0:02:20]} Qc4 {[%emt 0:11:14]} 20. a5 {[%emt 0:06:50]} f5 {[%emt 0:03:32]} 21. Ng3 {[%emt 0:00:59]} Qf7 {[%emt 0:04:31]} 22. f3 {[%emt 0:08:31]} Nc5 {[%emt 0:03:16]} 23. b4 {[%emt 0:05:46]} Ne6 {[%emt 0:00:40]} 24. Nge2 {[%emt 0:03:04]} Bd7 {[%emt 0:02:29]} 25. Rab1 {[%emt 0:00:39]} Kh7 {[%emt 0:08:29]} 26. Na4 {[%emt 0:01:00]} Bf8 {[%emt 0:02:11]} 27. Nc5 {[%emt 0:01:46]} Bxe7 {[%emt 0:05:25]} 28. Nxd7 {[%emt 0:01:24]} Bf6 {[%emt 0:00:24]} 29. Nxf6+ {[%emt 0:00:38]} Qxf6 {[%emt 0:00:03]} 30. d7 {[%emt 0:02:59]} Red8 {[%emt 0:04:06]} 31. Qd6 {[%emt 0:00:38]} Kg7 {[%emt 0:01:51]} 32. a6 {[%emt 0:01:03]} Rab8 {[%emt 0:04:30]} 33. b5 {[%emt 0:03:21]} cxb5 {[%emt 0:05:59]} 34. Rb2 b4 35. Rxb4 {[%emt 0:01:11]} Nd4 {[%emt 0:01:19]} 36. Rb5 Qe6 37. Qxe6 {[%emt 0:02:17] Kf6 [%clk 0:09:17]} 1/2-1/2

[Event "1st Gujarat GM Open 2018"]
[Site "Ahmedabad"]
[Date "2018.10.07"]
[Round "4"]
[White "Prajesh R"]
[Black "Surendran N"]
[Result "0-1"]
[ECO "E21"]
[WhiteElo "1953"]
[BlackElo "2210"]
[Annotator "NA"]
[PlyCount "76"]
[EventDate "2018.10.05"]
[EventType "swiss"]
[EventCountry "IND"]
[SourceTitle "playchess.com"]
[Source "ChessBase"]
[SourceQuality "1"]
[TimeControl "5400+30"]

1. d4 {[%emt 0:00:00]} Nf6 {[%emt 0:00:00]} 2. c4 {[%emt 0:00:04]} e6 {[%emt 0:00:00]} 3. Nc3 {[%emt 0:01:00]} Bb4 {[%emt 0:00:09]} 4. Nf3 {[%emt 0:00:04]} d5 {[%emt 0:00:04]} 5. Qa4+ {[%emt 0:00:44]} Nc6 {[%emt 0:00:07]} 6. e3 {[%emt 0:00:03]} O-O {[%emt 0:00:39]} 7. Qc2 {[%emt 0:00:38]} Qe7 {[%emt 0:05:33]} 8. Bd2 {[%emt 0:01:50]} dxc4 {[%emt 0:02:08]} 9. Bxc4 {[%emt 0:00:20]} a6 {[%emt 0:05:08]} 10. a3 {[%emt 0:09:27]} Bd6 {[%emt 0:00:24]} 11. h3 {[%emt 0:01:29]} e5 {[%emt 0:06:36]} 12. d5 {[%emt 0:05:36]} Nb8 {[%emt 0:03:28]} 13. e4 {[%emt 0:08:30]} Nbd7 {[%emt 0:04:19]} 14. O-O {[%emt 0:14:23]} Re8 {[%emt 0:03:25]} 15. b4 {[%emt 0:12:12]} Nf8 {[%emt 0:02:41]} 16. Rfc1 {[%emt 0:10:55]} Ng6 {[%emt 0:04:13]} 17. Bf1 {[%emt 0:00:02]} h6 {[%emt 0:01:34]} 18. Be3 {[%emt 0:01:35]} Nh5 {[%emt 0:03:41]} 19. Na4 {[%emt 0:03:11]} Qf6 {[%emt 0:07:34]} 20. Qd1 {[%emt 0:10:30]} Ngf4 {[%emt 0:26:32]} 21. g4 {[%emt 0:04:39]} Qg6 {[%emt 0:00:05]} 22. Nh4 {[%emt 0:00:07]} Qg5 {[%emt 0:00:07]} 23. Nf3 {[%emt 0:00:25]} Qg6 {[%emt 0:00:02]} 24. Nh4 {[%emt 0:00:02]} Qg5 {[%emt 0:00:06]} 25. Nf3 {[%emt 0:05:23]} Bxg4 {[%emt 0:05:21]} 26. hxg4 {[%emt 0:00:16]} Qxg4+ {[%emt 0:00:02]} 27. Kh1 {[%emt 0:01:12]} Nf6 {[%emt 0:00:32]} 28. Nh2 {[%emt 0:01:49]} Qg6 {[%emt 0:00:22]} 29. f3 {[%emt 0:02:32]} N6h5 {[%emt 0:02:13]} 30. Bxf4 {[%emt 0:00:03]} exf4 {[%emt 0:00:30]} 31. Bg2 {[%emt 0:00:23]} f5 {[%emt 0:01:37]} 32. Nc5 {[%emt 0:01:12]} Be5 {[%emt 0:12:55]} 33. Ra2 {[%emt 0:01:15]} Qf6 {[%emt 0:00:07]} 34. Nf1 {[%emt 0:02:33]} Bd4 {[%emt 0:01:10]} 35. Bh3 {[%emt 0:00:01]} Bxc5 {[%emt 0:03:31]} 36. Rxc5 {[%emt 0:02:59]} Qh4 {[%emt 0:00:04]} 37. Rh2 {[%emt 0:00:02]} Ng3+ {[%emt 0:00:04]} 38. Nxg3 {[%emt 0:01:02]} fxg3 {[%emt 0:00:02]} 0-1

[Event "1st Gujarat GM Open 2018"]
[Site "Ahmedabad"]
[Date "2018.10.07"]
[Round "4"]
[White "Tanishka Kotia"]
[Black "Franco Valencia, Angela"]
[Result "1-0"]
[ECO "C45"]
[WhiteElo "1892"]
[BlackElo "2188"]
[Annotator "NA"]
[PlyCount "86"]
[EventDate "2018.10.05"]
[EventType "swiss"]
[EventCountry "IND"]
[SourceTitle "playchess.com"]
[Source "ChessBase"]
[SourceQuality "1"]
[TimeControl "5400+30"]

1. e4 {[%emt 0:00:00]} e5 {[%emt 0:01:35]} 2. Nf3 {[%emt 0:00:00]} Nc6 {[%emt 0:00:05]} 3. d4 {[%emt 0:00:00]} exd4 {[%emt 0:00:08]} 4. Nxd4 {[%emt 0:00:00]} Nf6 {[%emt 0:00:51]} 5. Nxc6 {[%emt 0:00:00]} bxc6 {[%emt 0:00:03]} 6. e5 {[%emt 0:00:06]} Qe7 {[%emt 0:00:20]} 7. Qe2 {[%emt 0:00:09]} Nd5 {[%emt 0:00:05]} 8. c4 {[%emt 0:00:13]} Ba6 {[%emt 0:00:25]} 9. Nd2 {[%emt 0:00:13]} g6 {[%emt 0:04:00]} 10. Nf3 {[%emt 0:00:42]} Bg7 {[%emt 0:00:23]} 11. Bg5 {[%emt 0:00:55]} f6 {[%emt 0:19:56]} 12. exf6 {[%emt 0:03:04]} Qxe2+ {[%emt 0:03:20]} 13. Bxe2 {[%emt 0:00:02]} Nxf6 {[%emt 0:00:05]} 14. O-O-O {[%emt 0:11:20]} Ne4 {[%emt 0:07:49]} 15. Be3 {[%emt 0:00:37]} Rb8 {[%emt 0:11:01]} 16. Nd4 {[%emt 0:08:53]} O-O {[%emt 0:03:40]} 17. Bf3 {[%emt 0:07:00]} Rfe8 {[%emt 0:03:33]} 18. Bxe4 {[%emt 0:02:58]} Rxe4 {[%emt 0:00:07]} 19. b3 {[%emt 0:00:31]} Bb7 {[%emt 0:04:18]} 20. Rhe1 {[%emt 0:06:16]} d5 {[%emt 0:06:25]} 21. c5 {[%emt 0:16:43]} a5 {[%emt 0:01:25]} 22. f3 {[%emt 0:03:17]} Ree8 {[%emt 0:02:57]} 23. Bf2 {[%emt 0:02:46]} Kf7 {[%emt 0:01:42]} 24. Bg3 {[%emt 0:03:00]} a4 {[%emt 0:07:44]} 25. b4 {[%emt 0:03:53]} a3 26. Rd3 {[%emt 0:07:12]} Bxd4 {[%emt 0:11:22]} 27. Rxd4 {[%emt 0:00:09]} Rxe1+ {[%emt 0:01:48]} 28. Bxe1 {[%emt 0:00:01]} Ba6 {[%emt 0:00:06]} 29. Bg3 {[%emt 0:06:51]} Bc4 {[%emt 0:01:05]} 30. Be1 {[%emt 0:04:45]} Bxa2 {[%emt 0:00:57]} 31. Rd3 {[%emt 0:02:40]} Ra8 {[%emt 0:00:05]} 32. Bc3 {[%emt 0:01:28]} Bc4 {[%emt 0:00:08]} 33. Re3 {[%emt 0:00:18]} a2 {[%emt 0:00:15]} 34. Ba1 {[%emt 0:00:18]} Rb8 {[%emt 0:00:15]} 35. Ra3 {[%emt 0:01:41]} Rxb4 {[%emt 0:00:09]} 36. Be5 {[%emt 0:00:17]} Rb1+ {[%emt 0:00:51]} 37. Kc2 {[%emt 0:00:25]} Re1 {[%emt 0:00:43]} 38. f4 {[%emt 0:00:47]} Re2+ {[%emt 0:00:15]} 39. Kc1 {[%emt 0:00:34]} Rxg2 {[%emt 0:00:16]} 40. h3 {[%emt 0:00:20]} Ke6 {[%emt 0:00:57]} 41. Ra7 {[%emt 0:01:06]} Kf5 {[%emt 0:00:09]} 42. Ba1 {[%emt 0:02:03]} Rg1+ {[%emt 0:00:15]} 43. Kb2 {[%emt 0:00:10]} Rb1+ {[%emt 0:00:07]} 1-0

[Event "1st Gujarat GM Open 2018"]
[Site "Ahmedabad"]
[Date "2018.10.07"]
[Round "4"]
[White "Patel Suyogkumar M"]
[Black "Kiran, Manisha Mohanty"]
[Result "0-1"]
[ECO "B26"]
[WhiteElo "1424"]
[BlackElo "2147"]
[Annotator "NA"]
[PlyCount "40"]
[EventDate "2018.10.05"]
[EventType "swiss"]
[EventCountry "IND"]
[SourceTitle "playchess.com"]
[Source "ChessBase"]
[SourceQuality "1"]
[TimeControl "5400+30"]

1. e4 {[%emt 0:06:33]} c5 {[%emt 0:00:00]} 2. Nc3 {[%emt 0:01:03]} d6 {[%emt 0:00:00]} 3. g3 {[%emt 0:00:08]} g6 {[%emt 0:00:00]} 4. Bg2 {[%emt 0:00:12]} Bg7 {[%emt 0:00:01]} 5. d3 {[%emt 0:00:05]} Nc6 {[%emt 0:00:07]} 6. Be3 {[%emt 0:02:05]} e6 {[%emt 0:00:06]} 7. Qd2 {[%emt 0:00:44]} Rb8 {[%emt 0:00:14]} 8. f4 {[%emt 0:01:05]} Nge7 {[%emt 0:00:08]} 9. Nf3 {[%emt 0:02:36]} O-O {[%emt 0:00:45]} 10. O-O {[%emt 0:00:38]} b6 {[%emt 0:00:24]} 11. Rab1 d5 {[%emt 0:00:51]} 12. Ne2 {[%emt 0:11:49]} dxe4 {[%emt 0:06:58]} 13. dxe4 {[%emt 0:00:14]} Ba6 {[%emt 0:00:14]} 14. Rfd1 {[%emt 0:02:24]} Qxd2 {[%emt 0:01:53]} 15. Rxd2 {[%emt 0:00:12]} Rbd8 {[%emt 0:00:07]} 16. Kf2 {[%emt 0:02:53]} Nb4 {[%emt 0:06:10]} 17. c3 {[%emt 0:03:42]} Rxd2 {[%emt 0:00:51]} 18. Nxd2 {[%emt 0:00:40]} Nd3+ {[%emt 0:01:34]} 19. Kf3 {[%emt 0:05:05]} f5 {[%emt 0:00:35]} 20. e5 {[%emt 0:01:04]} Bb7+ {[%emt 0:00:12]} 0-1